[Event "Early-Titled-Tuesday-Blitz-February-06-2024"]
[Site "Chess.com"]
[Date "2024.02.06"]
[Round "11"]
[White "Orphanator2009"]
[Black "Maxfan2008"]
[Result "1-0"]
[WhiteElo "2476"]
[BlackElo "2552"]
[TimeControl "180+1"]
[EndTime "10:06:29 PST"]
[Termination "Orphanator2009 won on time"]

1. e4 {[%clk 0:03:00.9]} 1... c5 {[%clk 0:02:59.5]} 2. Nf3 {[%clk 0:03:01.1]}
2... d6 {[%clk 0:02:59.7]} 3. d4 {[%clk 0:03:01.4]} 3... cxd4 {[%clk 0:03:00.6]}
4. Nxd4 {[%clk 0:03:02.3]} 4... Nf6 {[%clk 0:03:01]} 5. Nc3 {[%clk 0:03:02.7]}
5... a6 {[%clk 0:03:01.6]} 6. f3 {[%clk 0:03:03.2]} 6... e5 {[%clk 0:03:01.6]}
7. Nb3 {[%clk 0:03:03.8]} 7... Be6 {[%clk 0:02:59]} 8. Be3 {[%clk 0:03:04]} 8...
Be7 {[%clk 0:02:59.5]} 9. Qd2 {[%clk 0:03:04.2]} 9... O-O {[%clk 0:02:59.7]} 10.
O-O-O {[%clk 0:03:04.5]} 10... Nbd7 {[%clk 0:02:59.8]} 11. g4 {[%clk 0:03:04.2]}
11... b5 {[%clk 0:02:59.3]} 12. g5 {[%clk 0:03:04.5]} 12... Ne8 {[%clk
0:02:58.2]} 13. f4 {[%clk 0:02:55.4]} 13... b4 {[%clk 0:02:57.9]} 14. Ne2 {[%clk
0:02:55.2]} 14... a5 {[%clk 0:02:56.5]} 15. f5 {[%clk 0:02:55.3]} 15... a4
{[%clk 0:02:56.7]} 16. fxe6 {[%clk 0:02:54.3]} 16... axb3 {[%clk 0:02:56.4]} 17.
cxb3 {[%clk 0:02:55.2]} 17... fxe6 {[%clk 0:02:53.7]} 18. Bh3 {[%clk 0:02:54.9]}
18... Rxa2 {[%clk 0:02:53.2]} 19. Bxe6+ {[%clk 0:02:54.1]} 19... Kh8 {[%clk
0:02:53.3]} 20. Kb1 {[%clk 0:02:51]} 20... Qa8 {[%clk 0:02:34.7]} 21. Ng3 {[%clk
0:02:41]} 21... Ra1+ {[%clk 0:02:20.1]} 22. Kc2 {[%clk 0:02:39.4]} 22... Qc6+
{[%clk 0:02:16.2]} 23. Bc4 {[%clk 0:02:34.8]} 23... Rxd1 {[%clk 0:02:09.8]} 24.
Rxd1 {[%clk 0:02:31.7]} 24... Nc7 {[%clk 0:02:08.3]} 25. Kb1 {[%clk 0:02:22.3]}
25... Nb6 {[%clk 0:01:17]} 26. Bxb6 {[%clk 0:02:11.6]} 26... Qxb6 {[%clk
0:01:17.9]} 27. Rf1 {[%clk 0:02:12.3]} 27... Ra8 {[%clk 0:01:11.5]} 28. Rf7
{[%clk 0:02:02]} 28... Bf8 {[%clk 0:01:09.2]} 29. Qf2 {[%clk 0:01:50.6]} 29...
Qxf2 {[%clk 0:00:37.8]} 30. Rxf2 {[%clk 0:01:51.5]} 30... g6 {[%clk 0:00:37.9]}
31. Rf7 {[%clk 0:01:39.7]} 31... Rc8 {[%clk 0:00:37.2]} 32. Nf1 {[%clk
0:01:38.4]} 32... d5 {[%clk 0:00:32.7]} 33. exd5 {[%clk 0:01:38.2]} 33... Bc5
{[%clk 0:00:31.8]} 34. Nd2 {[%clk 0:01:35]} 34... Ne8 {[%clk 0:00:15.5]} 35. Ne4
{[%clk 0:00:37.8]} 35... Nd6 {[%clk 0:00:15.2]} 36. Nxd6 {[%clk 0:00:38.2]}
36... Bxd6 {[%clk 0:00:15.2]} 37. Rd7 {[%clk 0:00:39.1]} 37... Bb8 {[%clk
0:00:10.6]} 38. d6 {[%clk 0:00:37.2]} 38... e4 {[%clk 0:00:07.1]} 39. Kc2 {[%clk
0:00:35.7]} 39... Re8 {[%clk 0:00:02.4]} 40. Re7 {[%clk 0:00:36.1]} 40... Rd8
{[%clk 0:00:02.2]} 41. d7 {[%clk 0:00:36.5]} 41... Bc7 {[%clk 0:00:02.3]} 42.
Kd2 {[%clk 0:00:34.4]} 42... Bb6 {[%clk 0:00:01.6]} 43. Ke2 {[%clk 0:00:34.9]}
43... e3 {[%clk 0:00:01.7]} 44. Kd3 {[%clk 0:00:32.6]} 1-0

[Event "Early-Titled-Tuesday-Blitz-February-06-2024"]
[Site "Chess.com"]
[Date "2024.02.06"]
[Round "11"]
[White "SergioMoralesG"]
[Black "xberli"]
[Result "0-1"]
[WhiteElo "2456"]
[BlackElo "2563"]
[TimeControl "180+1"]
[EndTime "10:06:31 PST"]
[Termination "xberli won on time"]

1. d4 {[%clk 0:02:56.2]} 1... Nf6 {[%clk 0:02:55.6]} 2. g3 {[%clk 0:02:54.5]}
2... c5 {[%clk 0:02:52.9]} 3. d5 {[%clk 0:02:53.9]} 3... e6 {[%clk 0:02:52.1]}
4. Nc3 {[%clk 0:02:52.7]} 4... d6 {[%clk 0:02:47.3]} 5. Bg2 {[%clk 0:02:51.7]}
5... g6 {[%clk 0:02:46.4]} 6. dxe6 {[%clk 0:02:50.6]} 6... fxe6 {[%clk
0:02:46.4]} 7. Bg5 {[%clk 0:02:45.7]} 7... Bg7 {[%clk 0:02:45]} 8. Qd2 {[%clk
0:02:44.8]} 8... O-O {[%clk 0:02:44.4]} 9. O-O-O {[%clk 0:02:35.3]} 9... d5
{[%clk 0:02:44.2]} 10. e4 {[%clk 0:02:35.1]} 10... Qa5 {[%clk 0:02:27.3]} 11.
exd5 {[%clk 0:02:10.7]} 11... Nxd5 {[%clk 0:02:22.1]} 12. Nxd5 {[%clk
0:01:51.5]} 12... Qxa2 {[%clk 0:02:20.6]} 13. Ne7+ {[%clk 0:01:51.1]} 13... Kh8
{[%clk 0:02:18.7]} 14. c3 {[%clk 0:01:49]} 14... Nc6 {[%clk 0:02:09]} 15. Bxc6
{[%clk 0:01:11]} 15... bxc6 {[%clk 0:02:08]} 16. Nxc8 {[%clk 0:01:07.7]} 16...
Raxc8 {[%clk 0:02:01.3]} 17. Qc2 {[%clk 0:01:07.6]} 17... Rb8 {[%clk 0:01:01.1]}
18. Nh3 {[%clk 0:01:07.1]} 18... Rb3 {[%clk 0:00:57.2]} 19. Nf4 {[%clk
0:00:50.3]} 19... Rfb8 {[%clk 0:00:19.4]} 20. Rd8+ {[%clk 0:00:42.7]} 20... Rxd8
{[%clk 0:00:19.1]} 21. Bxd8 {[%clk 0:00:43.6]} 21... Bxc3 {[%clk 0:00:15.3]} 22.
bxc3 {[%clk 0:00:37.3]} 22... Qa3+ {[%clk 0:00:14]} 23. Kd2 {[%clk 0:00:14.2]}
23... Rb2 {[%clk 0:00:12.3]} 24. Bf6+ {[%clk 0:00:14.3]} 24... Kg8 {[%clk
0:00:11.7]} 25. Rb1 {[%clk 0:00:13.7]} 25... Rxc2+ {[%clk 0:00:11]} 26. Kxc2
{[%clk 0:00:14.6]} 26... Qa4+ {[%clk 0:00:09.3]} 27. Kd2 {[%clk 0:00:12.9]}
27... Qe4 {[%clk 0:00:08.8]} 28. Rb7 {[%clk 0:00:10.5]} 28... e5 {[%clk
0:00:07.2]} 29. Rg7+ {[%clk 0:00:04.2]} 29... Kf8 {[%clk 0:00:06.9]} 30. Rxh7
{[%clk 0:00:04.4]} 30... exf4 {[%clk 0:00:06]} 31. g4 {[%clk 0:00:01.5]} 31...
f3 {[%clk 0:00:05.1]} 32. g5 {[%clk 0:00:01.5]} 32... Qe2+ {[%clk 0:00:05.1]}
33. Kc1 {[%clk 0:00:01.2]} 33... Qxf2 {[%clk 0:00:05.3]} 0-1

[Event "Early-Titled-Tuesday-Blitz-February-06-2024"]
[Site "Chess.com"]
[Date "2024.02.06"]
[Round "11"]
[White "Manukyan_Artak"]
[Black "yobdc"]
[Result "0-1"]
[WhiteElo "2475"]
[BlackElo "2598"]
[TimeControl "180+1"]
[EndTime "10:06:33 PST"]
[Termination "yobdc won on time"]

1. e4 {[%clk 0:02:56.3]} 1... c6 {[%clk 0:02:59.8]} 2. d4 {[%clk 0:02:53.5]}
2... d5 {[%clk 0:03:00]} 3. e5 {[%clk 0:02:52.7]} 3... Bf5 {[%clk 0:02:59.5]} 4.
c4 {[%clk 0:02:52.5]} 4... dxc4 {[%clk 0:02:57.1]} 5. Bxc4 {[%clk 0:02:51.9]}
5... e6 {[%clk 0:02:57.5]} 6. Nf3 {[%clk 0:02:51.1]} 6... Nd7 {[%clk 0:02:57.7]}
7. Nc3 {[%clk 0:02:50.5]} 7... Nb6 {[%clk 0:02:58]} 8. Bb3 {[%clk 0:02:50.7]}
8... Bg4 {[%clk 0:02:57.2]} 9. Be3 {[%clk 0:02:48.9]} 9... Ne7 {[%clk
0:02:57.1]} 10. h3 {[%clk 0:02:42.5]} 10... Bxf3 {[%clk 0:02:57.1]} 11. Qxf3
{[%clk 0:02:42.1]} 11... Nf5 {[%clk 0:02:57.6]} 12. O-O-O {[%clk 0:02:41.9]}
12... a5 {[%clk 0:02:20.7]} 13. a3 {[%clk 0:02:36.2]} 13... a4 {[%clk
0:02:20.3]} 14. Ba2 {[%clk 0:02:34.6]} 14... Nd5 {[%clk 0:02:16.6]} 15. Nxd5
{[%clk 0:02:28.9]} 15... cxd5 {[%clk 0:02:15.2]} 16. Kb1 {[%clk 0:02:29.4]}
16... Ne7 {[%clk 0:01:37.7]} 17. Rc1 {[%clk 0:02:09.5]} 17... Nc6 {[%clk
0:01:37.3]} 18. Qg4 {[%clk 0:01:58.8]} 18... Qb6 {[%clk 0:01:24.7]} 19. Ka1
{[%clk 0:01:43.9]} 19... Na5 {[%clk 0:01:19.3]} 20. Rc3 {[%clk 0:01:40.7]} 20...
h5 {[%clk 0:01:03.9]} 21. Qg3 {[%clk 0:01:33.1]} 21... Nc6 {[%clk 0:01:00.4]}
22. Rhc1 {[%clk 0:01:31.8]} 22... g6 {[%clk 0:00:50.7]} 23. Bb1 {[%clk
0:01:12.8]} 23... Be7 {[%clk 0:00:50.3]} 24. f4 {[%clk 0:00:38.2]} 24... h4
{[%clk 0:00:41.4]} 25. Qf2 {[%clk 0:00:36.4]} 25... Kf8 {[%clk 0:00:35.7]} 26.
g4 {[%clk 0:00:21.9]} 26... hxg3 {[%clk 0:00:35.6]} 27. Qxg3 {[%clk 0:00:22.1]}
27... Nxd4 {[%clk 0:00:20.4]} 28. Bxd4 {[%clk 0:00:15.9]} 28... Qxd4 {[%clk
0:00:20.5]} 29. Rc8+ {[%clk 0:00:15.3]} 29... Rxc8 {[%clk 0:00:19.4]} 30. Rxc8+
{[%clk 0:00:15.9]} 30... Kg7 {[%clk 0:00:19.8]} 31. Rxh8 {[%clk 0:00:14.3]}
31... Kxh8 {[%clk 0:00:20.7]} 32. Bc2 {[%clk 0:00:10.6]} 32... b5 {[%clk
0:00:19.9]} 33. Qd3 {[%clk 0:00:09.7]} 33... Qxf4 {[%clk 0:00:17.7]} 34. Qxb5
{[%clk 0:00:09.8]} 34... Qc1+ {[%clk 0:00:13.1]} 35. Bb1 {[%clk 0:00:09.3]}
35... Kg7 {[%clk 0:00:10.4]} 36. Qxa4 {[%clk 0:00:08.9]} 36... Bg5 {[%clk
0:00:10.4]} 37. Qc2 {[%clk 0:00:03.7]} 37... Qe1 {[%clk 0:00:10]} 0-1

[Event "Early-Titled-Tuesday-Blitz-February-06-2024"]
[Site "Chess.com"]
[Date "2024.02.06"]
[Round "11"]
[White "campochess"]
[Black "frequentblunders"]
[Result "1/2-1/2"]
[WhiteElo "2087"]
[BlackElo "2167"]
[TimeControl "180+1"]
[EndTime "10:06:34 PST"]
[Termination "Game drawn by repetition"]

1. e4 {[%clk 0:02:59.7]} 1... e6 {[%clk 0:03:00]} 2. Qe2 {[%clk 0:02:58.9]} 2...
c5 {[%clk 0:03:00.9]} 3. c3 {[%clk 0:02:58]} 3... Be7 {[%clk 0:03:00.9]} 4. d4
{[%clk 0:02:57.3]} 4... d5 {[%clk 0:03:01.2]} 5. e5 {[%clk 0:02:55.4]} 5... b6
{[%clk 0:02:59.1]} 6. f4 {[%clk 0:02:55.1]} 6... Ba6 {[%clk 0:02:58.5]} 7. Qg4
{[%clk 0:02:54.1]} 7... Bxf1 {[%clk 0:02:56.4]} 8. Qxg7 {[%clk 0:02:48.6]} 8...
Bxg2 {[%clk 0:02:37.8]} 9. Qxg2 {[%clk 0:02:40.2]} 9... Bh4+ {[%clk 0:02:28.1]}
10. Kd1 {[%clk 0:02:37.7]} 10... Ne7 {[%clk 0:02:22.8]} 11. Nf3 {[%clk
0:02:35.6]} 11... Rg8 {[%clk 0:02:20.4]} 12. Qh3 {[%clk 0:02:31.3]} 12... Nf5
{[%clk 0:02:19.4]} 13. Na3 {[%clk 0:02:20.1]} 13... Nc6 {[%clk 0:02:10.1]} 14.
Nc2 {[%clk 0:02:18.3]} 14... Rg6 {[%clk 0:01:25.9]} 15. Bd2 {[%clk 0:02:17.4]}
15... Rh6 {[%clk 0:01:23.1]} 16. Qg2 {[%clk 0:02:11.7]} 16... Qe7 {[%clk
0:01:18.7]} 17. Rb1 {[%clk 0:02:08.5]} 17... O-O-O {[%clk 0:01:13.6]} 18. b4
{[%clk 0:02:08.4]} 18... c4 {[%clk 0:01:09.7]} 19. b5 {[%clk 0:02:03.7]} 19...
Na5 {[%clk 0:01:05.2]} 20. Nb4 {[%clk 0:02:03.4]} 20... Qf8 {[%clk 0:00:27.4]}
21. Rg1 {[%clk 0:01:59.9]} 21... Rg6 {[%clk 0:00:25]} 22. Qf1 {[%clk 0:01:57.5]}
22... Be7 {[%clk 0:00:24.3]} 23. Na6 {[%clk 0:01:50.6]} 23... Qh6 {[%clk
0:00:23.3]} 24. Ke2 {[%clk 0:01:48.8]} 24... Rdg8 {[%clk 0:00:22.9]} 25. Qf2
{[%clk 0:01:42.7]} 25... Nb7 {[%clk 0:00:17.2]} 26. Rxg6 {[%clk 0:01:40.7]}
26... hxg6 {[%clk 0:00:15.6]} 27. Rg1 {[%clk 0:01:40.3]} 27... Rh8 {[%clk
0:00:15.5]} 28. Rg2 {[%clk 0:01:37.7]} 28... Bh4 {[%clk 0:00:15.5]} 29. Qg1
{[%clk 0:01:34.3]} 29... Be7 {[%clk 0:00:14.1]} 30. Be1 {[%clk 0:01:33.6]} 30...
Bh4 {[%clk 0:00:13.4]} 31. Bg3 {[%clk 0:01:32.4]} 31... Bxg3 {[%clk 0:00:13.7]}
32. hxg3 {[%clk 0:01:32.6]} 32... Qh7 {[%clk 0:00:11.8]} 33. Rh2 {[%clk
0:01:32.6]} 33... Qg7 {[%clk 0:00:11.1]} 34. Rxh8+ {[%clk 0:01:31.7]} 34... Qxh8
{[%clk 0:00:12]} 35. Kf2 {[%clk 0:01:29.7]} 35... Kd7 {[%clk 0:00:11.1]} 36. Qh2
{[%clk 0:01:29.3]} 36... Qxh2+ {[%clk 0:00:10.7]} 37. Nxh2 {[%clk 0:01:28.8]}
37... Nd8 {[%clk 0:00:10.2]} 38. Ng4 {[%clk 0:01:28.6]} 38... Ng7 {[%clk
0:00:07.7]} 39. Nf6+ {[%clk 0:01:28.4]} 39... Ke7 {[%clk 0:00:08]} 40. Nb8
{[%clk 0:01:25.8]} 40... Ne8 {[%clk 0:00:07.4]} 41. Nxe8 {[%clk 0:01:24.8]}
41... Kxe8 {[%clk 0:00:08.3]} 42. g4 {[%clk 0:01:23.5]} 42... Ke7 {[%clk
0:00:08.1]} 43. Kf3 {[%clk 0:01:22.6]} 43... Ke8 {[%clk 0:00:08.3]} 44. f5
{[%clk 0:01:22.2]} 44... Ke7 {[%clk 0:00:08.5]} 45. fxg6 {[%clk 0:01:20.4]}
45... fxg6 {[%clk 0:00:08.8]} 46. Kf4 {[%clk 0:01:20.6]} 46... Kf7 {[%clk
0:00:06.7]} 47. Kg5 {[%clk 0:01:20.6]} 47... Kg7 {[%clk 0:00:06.3]} 48. Nc6
{[%clk 0:01:20.1]} 48... Nf7+ {[%clk 0:00:05.7]} 49. Kf4 {[%clk 0:01:18.9]}
49... g5+ {[%clk 0:00:06.2]} 50. Kg3 {[%clk 0:01:18.6]} 50... Kf8 {[%clk
0:00:04.4]} 51. Nxa7 {[%clk 0:01:18.2]} 51... Nd8 {[%clk 0:00:05.1]} 52. Nc6
{[%clk 0:01:18.1]} 52... Nxc6 {[%clk 0:00:05.3]} 53. bxc6 {[%clk 0:01:18]} 53...
Ke7 {[%clk 0:00:06.2]} 54. Kf3 {[%clk 0:01:15.6]} 54... Kd8 {[%clk 0:00:07.1]}
55. Ke3 {[%clk 0:01:15.3]} 55... Kc7 {[%clk 0:00:08]} 56. Kd2 {[%clk 0:01:15.6]}
56... Kxc6 {[%clk 0:00:08.9]} 57. Kc2 {[%clk 0:01:15.9]} 57... Kb5 {[%clk
0:00:09.8]} 58. a3 {[%clk 0:01:11.7]} 58... Ka5 {[%clk 0:00:09.4]} 59. Kb2
{[%clk 0:01:11.8]} 59... Ka4 {[%clk 0:00:09.9]} 60. Ka2 {[%clk 0:01:11.8]} 60...
Ka5 {[%clk 0:00:10.1]} 61. Kb2 {[%clk 0:01:11.9]} 61... Ka4 {[%clk 0:00:09.8]}
62. Ka2 {[%clk 0:01:12.1]} 62... Ka5 {[%clk 0:00:10.1]} 63. Kb2 {[%clk
0:01:12.3]} 1/2-1/2

[Event "Early-Titled-Tuesday-Blitz-February-06-2024"]
[Site "Chess.com"]
[Date "2024.02.06"]
[Round "11"]
[White "KetiTsatsalashvili"]
[Black "aghasiyevkamal"]
[Result "1-0"]
[WhiteElo "2480"]
[BlackElo "2645"]
[TimeControl "180+1"]
[EndTime "10:06:35 PST"]
[Termination "KetiTsatsalashvili won by resignation"]

1. d4 {[%clk 0:02:47.4]} 1... d5 {[%clk 0:02:59.2]} 2. Nf3 {[%clk 0:02:46.7]}
2... Nf6 {[%clk 0:02:58.7]} 3. e3 {[%clk 0:02:46.5]} 3... g6 {[%clk 0:02:55.3]}
4. h3 {[%clk 0:02:42.7]} 4... Bg7 {[%clk 0:02:54.9]} 5. b3 {[%clk 0:02:38.5]}
5... O-O {[%clk 0:02:54.5]} 6. Bb2 {[%clk 0:02:39]} 6... c5 {[%clk 0:02:52.1]}
7. Bd3 {[%clk 0:02:36.9]} 7... Nc6 {[%clk 0:02:50.6]} 8. Nbd2 {[%clk 0:02:36.9]}
8... cxd4 {[%clk 0:02:50]} 9. exd4 {[%clk 0:02:36.7]} 9... Nh5 {[%clk 0:02:50]}
10. O-O {[%clk 0:02:29.3]} 10... Nf4 {[%clk 0:02:50.2]} 11. Re1 {[%clk
0:02:23.7]} 11... Nxd3 {[%clk 0:02:43.4]} 12. cxd3 {[%clk 0:02:24.6]} 12... Bf5
{[%clk 0:02:42.8]} 13. Nf1 {[%clk 0:02:22.7]} 13... Nb4 {[%clk 0:02:41.2]} 14.
Ne3 {[%clk 0:01:40.8]} 14... Nxd3 {[%clk 0:02:39]} 15. Nxf5 {[%clk 0:01:38.9]}
15... Nxb2 {[%clk 0:02:34.4]} 16. Nxe7+ {[%clk 0:01:28.7]} 16... Kh8 {[%clk
0:02:09.1]} 17. Qd2 {[%clk 0:01:26]} 17... Re8 {[%clk 0:02:08.8]} 18. Nxg6+
{[%clk 0:01:22.3]} 18... hxg6 {[%clk 0:02:08.8]} 19. Qxb2 {[%clk 0:01:22.4]}
19... Re4 {[%clk 0:02:06.5]} 20. Ne5 {[%clk 0:01:18.2]} 20... Kg8 {[%clk
0:02:03]} 21. f3 {[%clk 0:01:16.4]} 21... Rxe1+ {[%clk 0:02:00.7]} 22. Rxe1
{[%clk 0:01:17.3]} 22... Rc8 {[%clk 0:02:00.1]} 23. Rc1 {[%clk 0:01:11.8]} 23...
Rc7 {[%clk 0:01:30.1]} 24. Rxc7 {[%clk 0:01:06.3]} 24... Qxc7 {[%clk 0:01:30.3]}
25. f4 {[%clk 0:01:00.7]} 25... b5 {[%clk 0:01:26.9]} 26. Kh2 {[%clk 0:00:54.5]}
26... a5 {[%clk 0:01:26.3]} 27. Qe2 {[%clk 0:00:53.5]} 27... b4 {[%clk
0:01:24.4]} 28. Qf3 {[%clk 0:00:43.9]} 28... Qc1 {[%clk 0:01:16.1]} 29. f5
{[%clk 0:00:37.1]} 29... Qc3 {[%clk 0:00:47.8]} 30. fxg6 {[%clk 0:00:24.6]}
30... fxg6 {[%clk 0:00:44.1]} 31. Qxd5+ {[%clk 0:00:21.6]} 31... Kh7 {[%clk
0:00:43.6]} 32. Qe4 {[%clk 0:00:20]} 32... Bxe5+ {[%clk 0:00:39.5]} 33. dxe5
{[%clk 0:00:18.2]} 33... Kg7 {[%clk 0:00:39.1]} 34. h4 {[%clk 0:00:16.5]} 34...
Qc7 {[%clk 0:00:31.8]} 35. Kh3 {[%clk 0:00:15.6]} 35... Qc3+ {[%clk 0:00:30]}
36. Kg4 {[%clk 0:00:12.7]} 36... Qc7 {[%clk 0:00:24]} 37. e6 {[%clk 0:00:11.8]}
37... Kh7 {[%clk 0:00:20.5]} 38. e7 {[%clk 0:00:11.6]} 38... Qd7+ {[%clk
0:00:21]} 39. Kf4 {[%clk 0:00:10.8]} 39... Qe8 {[%clk 0:00:21.9]} 40. Qe6 {[%clk
0:00:10.5]} 40... Kh6 {[%clk 0:00:20.4]} 41. Qf6 {[%clk 0:00:09.9]} 41... Qb8+
{[%clk 0:00:20.1]} 42. Kf3 {[%clk 0:00:09.3]} 42... Qb7+ {[%clk 0:00:20.3]} 43.
Kf2 {[%clk 0:00:09.6]} 43... Qb6+ {[%clk 0:00:19.6]} 44. Qxb6 {[%clk 0:00:08.7]}
1-0

[Event "Early-Titled-Tuesday-Blitz-February-06-2024"]
[Site "Chess.com"]
[Date "2024.02.06"]
[Round "11"]
[White "Leebit02"]
[Black "angelgab3"]
[Result "0-1"]
[WhiteElo "2558"]
[BlackElo "2741"]
[TimeControl "180+1"]
[EndTime "10:06:35 PST"]
[Termination "angelgab3 won on time"]

1. d4 {[%clk 0:02:57.8]} 1... Nf6 {[%clk 0:02:59.2]} 2. Nf3 {[%clk 0:02:56.2]}
2... d5 {[%clk 0:02:58.6]} 3. c4 {[%clk 0:02:55.7]} 3... e6 {[%clk 0:02:58.6]}
4. g3 {[%clk 0:02:55.9]} 4... dxc4 {[%clk 0:02:59.1]} 5. Bg2 {[%clk 0:02:55.6]}
5... a6 {[%clk 0:02:59.7]} 6. O-O {[%clk 0:02:55.8]} 6... Nc6 {[%clk 0:02:59.7]}
7. Qd2 {[%clk 0:02:53.8]} 7... Bb4 {[%clk 0:02:54.7]} 8. Qc2 {[%clk 0:02:52.9]}
8... b5 {[%clk 0:02:47.1]} 9. Rd1 {[%clk 0:02:23]} 9... Bd7 {[%clk 0:01:20.6]}
10. a4 {[%clk 0:02:02.1]} 10... Rb8 {[%clk 0:01:15.6]} 11. e4 {[%clk 0:01:55.3]}
11... O-O {[%clk 0:01:15.2]} 12. Bg5 {[%clk 0:01:54.2]} 12... Be7 {[%clk
0:01:15.3]} 13. Qe2 {[%clk 0:01:31.9]} 13... Re8 {[%clk 0:01:09]} 14. Na3 {[%clk
0:00:57.5]} 14... h6 {[%clk 0:01:05.2]} 15. Bf4 {[%clk 0:00:56.9]} 15... Nb4
{[%clk 0:01:01.8]} 16. Ne5 {[%clk 0:00:54.1]} 16... Qc8 {[%clk 0:00:39.1]} 17.
h4 {[%clk 0:00:48.6]} 17... Bd6 {[%clk 0:00:37.5]} 18. h5 {[%clk 0:00:42.6]}
18... Nh7 {[%clk 0:00:36.1]} 19. Qf3 {[%clk 0:00:35.9]} 19... Rf8 {[%clk
0:00:31.3]} 20. Ng4 {[%clk 0:00:23.7]} 20... Bxf4 {[%clk 0:00:30.6]} 21. Qxf4
{[%clk 0:00:22.4]} 21... Kh8 {[%clk 0:00:26.3]} 22. Rac1 {[%clk 0:00:19.1]}
22... Na2 {[%clk 0:00:22.2]} 23. Rc2 {[%clk 0:00:18.5]} 23... Nb4 {[%clk
0:00:22.7]} 24. Rcd2 {[%clk 0:00:18]} 24... Qd8 {[%clk 0:00:22.5]} 25. e5 {[%clk
0:00:16.6]} 25... Qg5 {[%clk 0:00:20.5]} 26. Ne3 {[%clk 0:00:10.4]} 26... Qxf4
{[%clk 0:00:20.5]} 27. gxf4 {[%clk 0:00:11.1]} 27... c6 {[%clk 0:00:18.4]} 28.
f5 {[%clk 0:00:11.3]} 28... Nd5 {[%clk 0:00:18.4]} 29. Nxd5 {[%clk 0:00:09]}
29... cxd5 {[%clk 0:00:17.3]} 30. f4 {[%clk 0:00:06.6]} 30... b4 {[%clk
0:00:15.3]} 31. Nb1 {[%clk 0:00:06.4]} 31... Bxa4 {[%clk 0:00:15.9]} 32. Re1
{[%clk 0:00:05.3]} 32... Rfc8 {[%clk 0:00:16.1]} 33. Rf2 {[%clk 0:00:03.7]}
33... c3 {[%clk 0:00:16.1]} 34. bxc3 {[%clk 0:00:04.3]} 34... bxc3 {[%clk
0:00:17]} 35. Rc1 {[%clk 0:00:04.8]} 35... c2 {[%clk 0:00:17]} 36. Na3 {[%clk
0:00:03.8]} 36... Rb2 {[%clk 0:00:16.4]} 37. Bf1 {[%clk 0:00:02.8]} 37... Ra2
{[%clk 0:00:16.3]} 38. Bxa6 {[%clk 0:00:01.8]} 38... Ra8 {[%clk 0:00:14.7]} 0-1

[Event "Early-Titled-Tuesday-Blitz-February-06-2024"]
[Site "Chess.com"]
[Date "2024.02.06"]
[Round "11"]
[White "Msb2"]
[Black "KaterynaLagno"]
[Result "1/2-1/2"]
[WhiteElo "2980"]
[BlackElo "2822"]
[TimeControl "180+1"]
[EndTime "10:06:36 PST"]
[Termination "Game drawn - insufficient material"]

1. d4 {[%clk 0:03:00.9]} 1... Nf6 {[%clk 0:02:56.3]} 2. c4 {[%clk 0:03:01.5]}
2... e6 {[%clk 0:02:56.1]} 3. Nc3 {[%clk 0:03:02.1]} 3... d5 {[%clk 0:02:56.5]}
4. cxd5 {[%clk 0:03:03]} 4... exd5 {[%clk 0:02:57.2]} 5. Bg5 {[%clk 0:03:03.4]}
5... Be7 {[%clk 0:02:56.8]} 6. e3 {[%clk 0:03:04]} 6... O-O {[%clk 0:02:57.4]}
7. Bd3 {[%clk 0:03:04.6]} 7... Re8 {[%clk 0:02:57.6]} 8. Nf3 {[%clk 0:03:01.7]}
8... c6 {[%clk 0:02:46.9]} 9. h3 {[%clk 0:03:01.3]} 9... Ne4 {[%clk 0:02:36.4]}
10. Bf4 {[%clk 0:03:01.1]} 10... Bf5 {[%clk 0:02:31.5]} 11. Qc2 {[%clk
0:03:00.7]} 11... Nd7 {[%clk 0:02:23]} 12. O-O {[%clk 0:03:00.4]} 12... Ndf6
{[%clk 0:02:20.4]} 13. Ne5 {[%clk 0:02:59.7]} 13... Bf8 {[%clk 0:01:44.5]} 14.
f3 {[%clk 0:02:52.5]} 14... Nxc3 {[%clk 0:01:44.5]} 15. bxc3 {[%clk 0:02:51.5]}
15... Bxd3 {[%clk 0:01:43.5]} 16. Qxd3 {[%clk 0:02:52.4]} 16... Nd7 {[%clk
0:01:41]} 17. Ng4 {[%clk 0:02:46.7]} 17... b5 {[%clk 0:01:35.1]} 18. e4 {[%clk
0:02:45.5]} 18... dxe4 {[%clk 0:01:33.3]} 19. fxe4 {[%clk 0:02:46.4]} 19... Nc5
{[%clk 0:01:33.2]} 20. Qf3 {[%clk 0:02:33.3]} 20... Nxe4 {[%clk 0:01:33.4]} 21.
Ne5 {[%clk 0:02:28]} 21... Qd5 {[%clk 0:01:32.7]} 22. Rae1 {[%clk 0:02:09.2]}
22... Nf6 {[%clk 0:01:25.6]} 23. Nxc6 {[%clk 0:01:58.3]} 23... Qxf3 {[%clk
0:01:23.3]} 24. gxf3 {[%clk 0:01:59.2]} 24... Nd5 {[%clk 0:01:13.5]} 25. Bd2
{[%clk 0:01:59.4]} 25... Rec8 {[%clk 0:01:10.1]} 26. Re5 {[%clk 0:01:26.2]}
26... Nxc3 {[%clk 0:01:06.3]} 27. Bxc3 {[%clk 0:01:27.1]} 27... Rxc6 {[%clk
0:01:06.3]} 28. Ba5 {[%clk 0:01:26.9]} 28... a6 {[%clk 0:01:01.5]} 29. Rd1
{[%clk 0:01:21.1]} 29... f6 {[%clk 0:00:58.1]} 30. Re2 {[%clk 0:01:20.6]} 30...
Rac8 {[%clk 0:00:57.4]} 31. d5 {[%clk 0:01:20.2]} 31... Rc2 {[%clk 0:00:52.4]}
32. Rxc2 {[%clk 0:01:15.6]} 32... Rxc2 {[%clk 0:00:49.3]} 33. d6 {[%clk
0:01:16.1]} 33... Bxd6 {[%clk 0:00:40]} 34. Rxd6 {[%clk 0:01:17]} 34... Rxa2
{[%clk 0:00:40.4]} 35. Rxa6 {[%clk 0:01:10.2]} 35... b4 {[%clk 0:00:37.4]} 36.
Ra8+ {[%clk 0:01:10.4]} 36... Kf7 {[%clk 0:00:37.4]} 37. Ra7+ {[%clk 0:01:11.3]}
37... Ke6 {[%clk 0:00:36.8]} 38. Bb6 {[%clk 0:01:12.2]} 38... Rxa7 {[%clk
0:00:36.1]} 39. Bxa7 {[%clk 0:01:13.1]} 39... b3 {[%clk 0:00:35.7]} 40. Bd4
{[%clk 0:01:13.1]} 40... Kd5 {[%clk 0:00:36.2]} 41. Ba1 {[%clk 0:00:54.1]} 41...
Kc4 {[%clk 0:00:36.4]} 42. Kf2 {[%clk 0:00:54.5]} 42... Kd3 {[%clk 0:00:37]} 43.
Kg3 {[%clk 0:00:55.1]} 43... Kc2 {[%clk 0:00:34.6]} 44. Kf4 {[%clk 0:00:55.6]}
44... b2 {[%clk 0:00:32.6]} 45. Bxb2 {[%clk 0:00:55.7]} 45... Kxb2 {[%clk
0:00:33.5]} 46. Kf5 {[%clk 0:00:56.6]} 46... Kc3 {[%clk 0:00:31.9]} 47. Ke6
{[%clk 0:00:57]} 47... Kd4 {[%clk 0:00:26.4]} 48. Kf7 {[%clk 0:00:57.4]} 48...
Ke3 {[%clk 0:00:23.2]} 49. Kxg7 {[%clk 0:00:56.9]} 49... f5 {[%clk 0:00:20.7]}
50. Kxh7 {[%clk 0:00:48.9]} 50... Kxf3 {[%clk 0:00:21]} 51. Kg6 {[%clk
0:00:36.7]} 51... f4 {[%clk 0:00:21.1]} 52. h4 {[%clk 0:00:36.9]} 52... Kg4
{[%clk 0:00:21.4]} 53. h5 {[%clk 0:00:37.8]} 53... f3 {[%clk 0:00:22.1]} 54. h6
{[%clk 0:00:38.7]} 54... f2 {[%clk 0:00:22.7]} 55. h7 {[%clk 0:00:39.6]} 55...
f1=Q {[%clk 0:00:23]} 56. h8=Q {[%clk 0:00:40.5]} 56... Qf5+ {[%clk 0:00:21.9]}
57. Kg7 {[%clk 0:00:39.2]} 57... Qe5+ {[%clk 0:00:21.8]} 58. Kh7 {[%clk
0:00:37.9]} 58... Qxh8+ {[%clk 0:00:20.7]} 59. Kxh8 {[%clk 0:00:37]} 1/2-1/2